Cogmind - Beta 13 @@@ ROGUE MODE // 2024.05.03 @ 18:58:14 Player: orthostice Result: Destroyed by D-53 Grenadier with Mini Grenade Launcher Performance ------------- Evolutions (0) 0 Regions Visited (2) 400 Robots Destroyed (18) 90 Value Destroyed (237) 237 Prototype IDs (0) 0 Alien Tech Used (0) 0 Bonus (0) 0 TOTAL SCORE: 727 Bonus ------- None Cogmind --------- Core Integrity 0/250 Matter 234/300 Energy 98/100 System Corruption 0% Temperature Cool (0) Movement Walking (680) Ox8 Location -10/Mines Parts ------- > --- POWER (1) -------- (None) > --- PROPULSION (2) --- Aluminum Leg > --- UTILITY (2) ------ Huge Storage Unit > --- WEAPON (2) ------- Light Assault Rifle Rocket Launcher > --- INVENTORY (25) --- Light Treads Aluminum Leg Small Storage Unit Light Assault Rifle Light Assault Rifle Light Assault Rifle Light Assault Rifle Peak State ------------ > --- POWER ------------ Ion Engine > --- PROPULSION ------- Light Treads Light Treads > --- UTILITY ---------- Huge Storage Unit > --- WEAPON ----------- Light Assault Rifle Light Assault Rifle > --- INVENTORY -------- Aluminum Leg Aluminum Leg Aluminum Leg Small Storage Unit Light Assault Rifle Light Assault Rifle Light Assault Rifle Grenade Launcher Rocket Launcher [Rating: 7] Favorites ----------- Power Ion Engine Engine Ion Engine Propulsion Light Treads Treads Light Treads Leg Aluminum Leg Utility Huge Storage Unit Storage Huge Storage Unit Weapon Light Assault Rifle Energy Gun EM Pulse Gun Ballistic Gun Light Assault Rifle Launcher Grenade Launcher Build | -11 -10 -10 ------- Run | Yrd Mat Min Slots Evolved . | . . . Power . | . . . Propulsion . | . . . Utility . | . . . Weapon . | . . . Parts Attached 18 | 7 3 8 Power 2 | 1 . 1 Engine 2 | 1 . 1 Core . | . . . Reactor . | . . . Propulsion 4 | 2 . 2 Treads 2 | 2 . . Leg 2 | . . 2 Wheel . | . . . Hover . | . . . Flight . | . . . Utility 2 | 1 1 . Device . | . . . Storage 2 | 1 1 . Processor . | . . . Hackware . | . . . Protection . | . . . Artifact . | . . . Weapon 10 | 3 2 5 Energy Gun 2 | 2 . . Energy Cannon . | . . . Ballistic Gun 5 | 1 2 2 Ballistic Cannon . | . . . Launcher 3 | . . 3 Special Weapon . | . . . Impact Weapon . | . . . Slashing Weapon . | . . . Piercing Weapon . | . . . Special Melee Weapon . | . . . Unidentified Prototypes . | . . . Parts Lost 4 | . . 4 Power 1 | . . 1 Propulsion 2 | . . 2 Utility . | . . . Weapon 1 | . . 1 Highest Loss Streak 4 | . . 4 To Critical Strikes . | . . . Average Slot Usage (%) 84 | . 85 83 Engine 13 | . 14 12 Treads 27 | . 28 26 Storage 14 | . 14 14 Energy Gun 1 | . 1 . Ballistic Gun 26 | . 26 26 Naked Turns . | . . . Heaviest Build 89 | 13 87 89 Greatest Support 40 | 40 40 40 Greatest Overweight (x) 8 | . 2 8 Average Overweight (x) . | . . 2 Largest Inventory Capacity 25 | 8 25 25 Average Capacity 17 | 6 13 25 Most Carried 9 | 4 9 9 Average Carried 7 | 2 7 8 Final Capacity 25 | 8 25 25 Final Carried 9 | 4 9 7 Class Distribution -------------------- 100% | Mutant Dominant Class ---------------- Mutant | -10/Materials Mutant | -10/Mines Resources | -11 -10 -10 ----------- Run | Yrd Mat Min Matter Collected 466 | 234 143 89 Remotely . | . . . Salvage Created 404 | . 354 50 Parts 36 | . 31 5 Haulers Intercepted 1 | . 1 . Recyclers Shooed . | . . . Parts Field Recycled . | . . . Retrieved Matter . | . . . Parts Self-Destructed . | . . . Prevented . | . . . Kills | -11 -10 -10 ------- Run | Yrd Mat Min Combat Hostiles Destroyed 17 | . 11 6 Guns 11 | . 11 . AOE 6 | . . 6 Classes Destroyed 7 | . 5 2 Worker 1 | . . 1 Hauler 1 | . 1 . Recycler 1 | . 1 . Watcher 1 | . 1 . Swarmer 11 | . 8 3 Grunt 3 | . 3 . Assembled 3 | . . 3 Best Kill Streak 5 | . 5 3 Combat Bots Only 3 | . 3 3 Max Kills in Single Turn 2 | . 1 2 Gunslinging . | . . . Exploded 2 | . . 2 Melee . | . . . Uniques/NPCs Destroyed . | . . . Combat | -11 -10 -10 -------- Run | Yrd Mat Min Hostile Shots Fired 90 | . 55 35 Missed 18 | . 10 8 Damage Taken 1062 | . 396 666 Core 264 | . 72 192 Absorbed by Shields . | . . . Core Remaining (%) 100 | 100 . . Volleys Fired 55 | . 46 9 Largest 2 | . 2 2 Hottest 63 | . 60 63 Shots Fired 108 | . 92 16 Gun 100 | . 92 8 Cannon . | . . . Launcher 8 | . . 8 Special . | . . . Kinetic 98 | . 90 8 Thermal . | . . . Explosive 8 | . . 8 Electromagnetic 2 | . 2 . Robot Hit Streak 6 | . 6 4 Robot Miss Streak 4 | . 4 1 Penetration Max . | . . . Secondary Targets 3 | . 3 . Max Gunslinging Chain 1 | . 1 . Shots Hit Robots 58 | . 47 11 Core Hits 40 | . 22 18 Critical Kills . | . . . Critical Parts Destroyed . | . . . Critical Strikes . | . . . Melee Attacks . | . . . Impact . | . . . Slashing . | . . . Piercing . | . . . Sneak Attacks . | . . . Combat Hostiles . | . . . Follow-up Attacks . | . . . Damage Inflicted 853 | . 430 423 Guns 446 | . 416 30 Cannons . | . . . Explosions 375 | . . 375 Melee . | . . . Ramming 32 | . 14 18 Kinetic 434 | . 404 30 Thermal . | . . . Explosive 375 | . . 375 Electromagnetic 12 | . 12 . Impact . | . . . Slashing . | . . . Piercing . | . . . Highest Corruption . | . . . Average Corruption . | . . . Corruption Purged . | . . . Corruption Blocked . | . . . Overload Shots . | . . . Overflow Damage . | . . . Projectiles . | . . . Explosions . | . . . Melee . | . . . Knockbacks . | . . . Impact . | . . . Kinetic . | . . . Secondary . | . . . Self-Inflicted Damage 40 | . . 40 Shots 1 | . . 1 Rammed 5 | . 4 1 Targets Rammed 6 | . 5 1 Kicked . | . . . Crushed 1 | . 1 . Highest Temperature 20 | . 20 20 Average Temperature 9 | . 8 10 Received Heat Transfer 60 | . 60 . Siege Activations . | . . . Robots Corrupted . | . . . Combat Hostiles . | . . . Parts Fried . | . . . Impact Corruptions . | . . . Robots Melted . | . . . Combat Hostiles . | . . . Parts Melted . | . . . Heat Transferred . | . . . Parts Sabotaged . | . . . Parts Stolen . | . . . Parts Stripped . | . . . Power Chain Reactions . | . . . Alert | -11 -10 -10 ------- Run | Yrd Mat Min Peak Influence 297 | . 297 158 Initial 65 | . . 65 Average 104 | . 146 59 Maximum Alert Level 1 | . 1 . Low Security (%) 89 | 100 81 100 Level 1 10 | . 18 . Level 2 . | . . . Level 3 . | . . . Level 4 . | . . . Level 5 . | . . . High Security . | . . . Max Security . | . . . Squads Dispatched 1 | . 1 . Investigation . | . . . Extermination . | . . . Reinforcement 1 | . 1 . Assault . | . . . Garrison . | . . . Intercept . | . . . Searches Triggered . | . . . Construction Impeded . | . . . Haulers Reinforced . | . . . Active Scanning Responses . | . . . Cargo Convoy Interrupts . | . . . Stealth | -11 -10 -10 --------- Run | Yrd Mat Min Distress Signals 3 | . 3 . Communications Jammed . | . . . Distress Signals . | . . . Times Spotted 31 | . 21 10 Peak Tracking Total 20 | . 6 20 Tactical Retreats 2 | . 1 1 Traps | -11 -10 -10 ------- Run | Yrd Mat Min Traps Triggered . | . . . Indirectly . | . . . Trap Hack Attempts . | . . . Triggered . | . . . Disarmed . | . . . Reprogrammed . | . . . Reused . | . . . Traps Extracted . | . . . Installed . | . . . Triggered . | . . . Machines | -11 -10 -10 ---------- Run | Yrd Mat Min Machines Disabled . | . . . Max in Single Turn . | . . . Machines Repaired . | . . . Machines Dismantled . | . . . Machines Sabotaged . | . . . Overloaded Fab Kills . | . . . Hacking | -11 -10 -10 --------- Run | Yrd Mat Min Machines Accessed . | . . . Terminals . | . . . Fabricators . | . . . Repair Stations . | . . . Recycling Units . | . . . Scanalyzers . | . . . Garrison Access . | . . . Total Hacks . | . . . Successful . | . . . Failed . | . . . Catastrophic . | . . . Database Lockouts . | . . . Manual . | . . . Terminals . | . . . Fabricators . | . . . Repair Stations . | . . . Recycling Units . | . . . Scanalyzers . | . . . Garrison Access . | . . . Terminal Hacks . | . . . Fabricator Hacks . | . . . Repair Station Hacks . | . . . Recycling Unit Hacks . | . . . Scanalyzer . | . . . Garrison Access Hacks . | . . . Unauthorized Hacks . | . . . Terminals . | . . . Fabricators . | . . . Repair Stations . | . . . Recycling Units . | . . . Scanalyzers . | . . . Garrison Access . | . . . Data Cores Recovered . | . . . Used . | . . . Hacking Detections . | . . . Full Trace Events . | . . . Feedback Events . | . . . Feedback Blocked . | . . . Robot Schematics Acquired . | . . . Robots Built . | . . . Authchips . | . . . Time . | . . . Total Robot Build Rating . | . . . Part Schematics Acquired . | . . . Parts Built . | . . . Authchips . | . . . Time . | . . . Total Part Build Rating . | . . . Parts Repaired . | . . . Time . | . . . Parts Recycled . | . . . Recycled Matter . | . . . Retrieved Matter . | . . . Retrieved Components . | . . . Parts Scanalyzed . | . . . Part Schematics Acquired . | . . . Parts Damaged . | . . . Bothacking | -11 -10 -10 ------------ Run | Yrd Mat Min Used RIF Installer . | . . . Robots Hacked . | . . . Non-combat . | . . . Combat . | . . . Robot Hacks Applied . | . . . Relay Couplers Released . | . . . Fabnet Peak Effective % . | . . . Robots Rewired . | . . . Allies Hacked . | . . . Hacks Repelled . | . . . Allies | -11 -10 -10 -------- Run | Yrd Mat Min Total Allies . | . . . Largest Group . | . . . Highest-Rated Group . | . . . Highest-Rated Ally . | . . . Total Orders . | . . . Ally Attacks . | . . . Total Damage . | . . . Kills . | . . . Allies Corrupted . | . . . Allies Melted . | . . . Intel | -11 -10 -10 ------- Run | Yrd Mat Min Robot Analysis Total . | . . . Derelict Logs Recovered . | . . . Drone Launches . | . . . Drone Recoveries . | . . . Exploration | -11 -10 -10 ------------- Run | Yrd Mat Min Turns Passed 1380 | 95 780 505 Spaces Moved 502 | 57 302 143 Core 9 | 9 . . Treads 489 | 48 302 139 Legs 4 | . . 4 Wheels . | . . . Hover . | . . . Flight . | . . . Fastest Speed 50 | 50 160 320 Average Speed 229 | 142 200 324 Slowest Speed 680 | 160 320 680 Overloaded Moves . | . . . Propulsion Burnouts . | . . . Robots Hopped . | . . . Cave-ins Triggered . | . . . Exploration Rate (%) 31 | 5 49 40 Regions Visited 2 Branch Regions 1 Pre-discovered Areas . | . . . Known Exits Taken . | . . . Unknown Exits Taken 2 | 1 1 . Scrap Searched 1 | . . 1 Spaces Dug . | . . . Terrain Destroyed 38 | . . 38 Melee . | . . . Projectile . | . . . AOE 38 | . . 38 Terrain Rammed . | . . . Walls Destroyed . | . . . Machines Disabled . | . . . Actions | -11 -10 -10 --------- Run | Yrd Mat Min Total 637 | 67 403 167 Wait 34 | . 30 4 Move 500 | 56 301 143 Hop . | . . . Pick Up 16 | 4 11 1 Fast Attach 6 | 6 . . Attach 2 | . . 2 Detach . | . . . Swap 10 | 1 3 6 Drop 8 | . 7 1 Fire 55 | . 46 9 Melee . | . . . Ram . | . . . Kick . | . . . Crush 6 | . 5 1 Escape Stasis . | . . . Rewire . | . . . Trap . | . . . Miscellaneous . | . . . Route ------- -11/Scrapyard -10/Materials (discovered 3 exits: [*Mat x2] / [*Min]) -10/Mines History --------- Turn | Location | Event 8 | -11/Scrapyard | Discovered new exit (range 16) 96 | -11/Scrapyard | Entered Materials 303 | -10/Materials | Build established: Mutant 433 | -10/Materials | Discovered new exit (range 16) 546 | -10/Materials | Discovered new exit (range 12) 731 | -10/Materials | Discovered new exit (range 12) 876 | -10/Materials | Entered Mines 941 | -10/Mines | Received a Rocket Launcher from a helpful Derelict 1331 | -10/Mines | Assembled infested the area 1368 | -10/Mines | Core integrity fell below 50% 1375 | -10/Mines | Core integrity fell below 20% 1381 | -10/Mines | Destroyed by D-53 Grenadier with Mini Grenade Launcher Last Messages --------------- Acquired 3 matter. The unstable cave ceiling collapses. Acquired 4 matter. The unstable cave ceiling collapses. ALERT: Infestation in the mines, dispatching Demolisher response squad. K-01 Serf destroyed. T-07 Excavator destroyed. as-00532 sneak attacks. R-06 Scavenger destroyed. Lgt. Treads destroyed. as-03927 destroyed. as-00532 destroyed. Ion Engine destroyed. as-94695 destroyed. as-28725 destroyed. Acquired 66 matter. Aluminum Leg destroyed. Grenade Launcher destroyed. The unstable cave ceiling collapses. Map ----- +----------------------------------------------------+ | | | | | ?????????????????????????????????????????????????? | | ?????????????????????????????????????????????????? | | ?????????????????##??????????????????????????????? | | ?????????????? ?? ??????????????????????????????? | | ?????????????" ??" #?????????????????????????????? | | ????????????"" ?"" #?????????????????????????????? | | ?????????" ?"" """ #?????????????????????????????? | | ?????????? ###???????????????????????????? | | ?????????? """ """ ????????????????????????????? | | ?????????? """ """ ?????????????????????????????? | | ???????????""" """ #?????????????????????????????? | | ??????????? #####?????????????????????????? | | ???????????# ## ### #?????????????????????????? | | ???????????# ## ####??????????????????????? | | ??????????## ## #??????????????????????? | | ###???????# = # #?????????###??????????? | | ##??????# # #???????? ??????????? | | ########!### ## #??????? ?????????? | | =%! %#?## ## ### ###???? ?????????? | | ###########??######### # #### ?????????? | | ###????????????????# # r #???????????? | | ???????????????# #?????????????? | | ### #?????????????# #??????????????? | | ##????#?????????????# @ #????????????????? | | ##???????????????????# ##????????????????? | | ????????????????????# #?????????????????? | | ##??????????????????## #?????????????????? | | ##??????????????????## # ##?????????????????? | | #???????????????????## d #?????????????????? | | #???????????????????? d #?????????????????? | | ##??????????????????? #?????????????????? | | ##???????????????????? #?????????????????? | | #???????????????????? ###?????????????????? | | ???????????#???????? ###???????????????????? | | ??????? ##??????? ?????????????????????? | | #### #?????? #?????????????????????? | | #????? ?????????????????????? | | ????? ?????????????????????? | | ##### ???????? ?????????????????????? | | ????????? ??????????? ?????????????????????? | | ?????????????????????????????????????????????????? | | ?????????????????????????????????????????????????? | | ?????????????????????????????????????????????????? | | ?????????????????????????????????????????????????? | | ?????????????????????????????????????????????????? | | ?????????????????????????????????????????????????? | | ?????????????????????????????????????????????????? | | ?????????????????????????????????????????????????? | +----------------------------------------------------+ Best States ------------- Heat Dissipation 25 Energy Generation 10 Energy Capacity 250 Matter Stores 300 Matter Capacity 300 Sight Range 16 Terrain Scan Density 10 Evasion (%) 50 Recoil Reduction 2 Item Schematics ----------------- None Robot Schematics ------------------ None Fabricated ------------ Nothing Alien Tech Used ----------------- None Achievements -------------- None Challenges ------------ None Game ------ Seed SpreadThermalMace Manual? 0 Play Time 00:09:26 Cumulative 9.6 hours Start 2024.05.03 @ 18:38:59 End 2024.05.03 @ 18:58:14 Sessions 1 Manual Loads 0 Difficulty Rogue Special Mode None Game No. 25 Rogue 25 Adventurer 0 Explorer 0 Win Type - Total 0 Types 0/0/0/0/0/0/0/0/0 Lore% 13 Gallery% 12 Achievement% 12 Wizard Run 0 Options --------- Layout 1 ASCII 0 Keyboard 0 Movement Vi Keybinds 0 Fullscreen 2 Font 32/SmallcapsGlow Map View 50x35 Zoom Use 0% Tactical HUD 0 Map Filters NONE Filters NONE Steam 1 RUN: 54f79391-e8b7-47ff-88ce-7c162010e8d2